Cogmind - Beta 17 @@@ ROGUE MODE // 2026.07.16 @ 21:18:24 Player: pinbox Result: Destroyed by YV-3GF(R) with Subdweller Laser Performance ------------- Evolutions (0) 0 Regions Visited (2) 400 Robots Destroyed (9) 45 Value Destroyed (231) 231 Prototype IDs (0) 0 Alien Tech Used (0) 0 Bonus (0) 0 TOTAL SCORE: 676 Bonus ------- None Cogmind --------- Core Integrity 0/250 Matter 243/300 Energy 100/100 System Corruption 0% Temperature Cool (6) Movement Treading (240) Ox1 Location -10/Subcaves Parts ------- > --- POWER (1) -------- (None) > --- PROPULSION (2) --- Light Treads > --- UTILITY (2) ------ High-capacity Storage Unit > --- WEAPON (2) ------- (None) > --- INVENTORY (20) --- Subdweller Power Source Light Treads Light Treads Light Treads Subdweller Monowheel Subdweller Optics Seismic Detector Scrap Shield Peak State ------------ > --- POWER ------------ Ion Engine > --- PROPULSION ------- Light Treads Light Treads > --- UTILITY ---------- High-capacity Storage Unit Light Armor Plating > --- WEAPON ----------- Assault Rifle Assault Rifle > --- INVENTORY -------- Light Ion Engine Subdweller Power Source Light Treads Light Treads Light Treads Subdweller Optics Seismic Detector Mining Laser [Rating: 8] Favorites ----------- Power Ion Engine Engine Ion Engine Propulsion Light Treads Treads Light Treads Utility Seismic Detector Device Seismic Detector Storage High-capacity Storage Unit Protection Light Armor Plating Weapon Assault Rifle Ballistic Gun Assault Rifle Special Weapon Mining Laser Build | -11 -10 -10 ------- Run | Yrd Mat Sub Slots Evolved . | . . . Power . | . . . Propulsion . | . . . Utility . | . . . Weapon . | . . . Parts Attached 11 | 7 1 3 Power 2 | 1 . 1 Engine 2 | 1 . 1 Core . | . . . Reactor . | . . . Propulsion 2 | 2 . . Treads 2 | 2 . . Leg . | . . . Wheel . | . . . Hover . | . . . Flight . | . . . Utility 4 | 2 1 1 Device 1 | 1 . . Storage 2 | 1 1 . Processor . | . . . Hackware . | . . . Protection 1 | . . 1 Artifact . | . . . Weapon 3 | 2 . 1 Energy Gun . | . . . Energy Cannon . | . . . Ballistic Gun 2 | 2 . . Ballistic Cannon . | . . . Launcher . | . . . Special Weapon 1 | . . 1 Impact Weapon . | . . . Slashing Weapon . | . . . Piercing Weapon . | . . . Special Melee Weapon . | . . . Unidentified Prototypes . | . . . Parts Lost 7 | . . 7 Power 2 | . . 2 Propulsion 1 | . . 1 Utility 1 | . . 1 Weapon 3 | . . 3 Highest Loss Streak 7 | . . 7 To Critical Strikes . | . . . Average Backups 5 | . 1 8 Power 1 | . 1 1 Propulsion 2 | . . 3 Utility 1 | . . 2 Weapon . | . . . Tool/Special . | . . . Unused Backups 7 | . . 7 Power 1 | . . 1 Propulsion 4 | . . 4 Utility 2 | . . 2 Weapon . | . . . Tool/Special . | . . . Average Slot Usage (%) 98 | . 100 97 Engine 13 | . 14 13 Treads 27 | . 28 27 Device 13 | . 14 12 Storage 14 | . 14 14 Ballistic Gun 26 | . 28 25 Peak Build Rating 8 | 7 7 8 Average Rating 7 | 5 7 7 On Entrance 4 | . 7 7 Avg Prop Armor Cover (%) . | . . . Naked Turns . | . . . Heaviest Build 52 | 15 50 52 Greatest Support 40 | 40 40 40 Greatest Overweight (x) 1 | . 1 1 Average Overweight (x) . | . . . Largest Inventory Capacity 20 | 8 20 20 Average Capacity 15 | 7 10 20 Most Carried 12 | 1 6 12 Average Carried 5 | . 1 8 Final Capacity 20 | 8 20 20 Final Carried 9 | 1 6 9 Class Distribution -------------------- 100% | Mutant Dominant Class ---------------- Mutant | -10/Materials Mutant | -10/Subcaves Resources | -11 -10 -10 ----------- Run | Yrd Mat Sub Matter Collected 458 | 247 183 28 Remotely . | . . . Salvage Created 293 | 62 181 50 Parts 22 | 6 10 6 Haulers Intercepted . | . . . Recyclers Shooed . | . . . Parts Field Recycled . | . . . Retrieved Matter . | . . . Parts Self-Destructed 3 | . . 3 Prevented . | . . . Parts Restored . | . . . Kills | -11 -10 -10 ------- Run | Yrd Mat Sub Combat Hostiles Destroyed 6 | . 5 1 Guns 6 | . 5 1 Classes Destroyed 3 | 1 1 1 Tunneler 3 | 3 . . Grunt 5 | . 5 . Subdweller 1 | . . 1 Best Kill Streak 3 | 3 2 1 Combat Bots Only 2 | . 2 1 Max Kills in Single Turn 1 | 1 1 1 Gunslinging . | . . . Exploded . | . . . Melee . | . . . Uniques/NPCs Destroyed . | . . . Combat | -11 -10 -10 -------- Run | Yrd Mat Sub Hostile Shots Fired 77 | . 20 57 Missed 18 | . 3 15 Hits 59 | . 17 42 Projectile 59 | . 17 42 Critical Strikes 1 | . . 1 Damage Taken 1058 | . 186 872 Core 261 | . 54 207 Absorbed by Shields . | . . . Core Remaining (%) 100 | 100 . . Volleys Fired 43 | 8 17 18 Largest 2 | 2 2 2 Hottest 120 | 40 40 120 Shots Fired 74 | 16 34 24 Gun 67 | 16 34 17 Cannon . | . . . Launcher . | . . . Special 7 | . . 7 Kinetic 67 | 16 34 17 Thermal 7 | . . 7 Explosive . | . . . Electromagnetic . | . . . Robot Hit Streak 10 | 2 5 10 Robot Miss Streak 3 | 2 3 1 Penetration Max . | . . . Secondary Targets . | . . . Shots Hit Robots 43 | 8 20 15 Core Hits 15 | 3 10 2 Critical Kills 1 | . 1 . Critical Parts Destroyed . | . . . Critical Strikes 1 | . 1 . Destroy 1 | . 1 . Melee Attacks . | . . . Impact . | . . . Slashing . | . . . Piercing . | . . . Sneak Attacks . | . . . Combat Hostiles . | . . . Follow-up Attacks . | . . . Damage Inflicted 490 | 112 253 125 Guns 429 | 112 253 64 Cannons . | . . . Explosions . | . . . Melee . | . . . Ramming 13 | . . 13 Kinetic 429 | 112 253 64 Thermal 48 | . . 48 Explosive . | . . . Electromagnetic . | . . . Impact . | . . . Slashing . | . . . Piercing . | . . . Highest Corruption . | . . . Average Corruption . | . . . Corruption Purged . | . . . Corruption Blocked . | . . . Overload Shots . | . . . Overflow Damage . | . . . Projectiles . | . . . Explosions . | . . . Melee . | . . . Knockbacks . | . . . Impact . | . . . Kinetic . | . . . Secondary . | . . . Self-Inflicted Damage . | . . . Shots . | . . . Rammed 8 | . . 8 Targets Rammed 8 | . . 8 Kicked . | . . . Crushed . | . . . Highest Temperature . | . . . Average Temperature . | . . . Received Heat Transfer 330 | . 102 228 Siege Activations . | . . . Martial Activations . | . . . Shielding Activations . | . . . Robots Disrupted . | . . . Combat Hostiles . | . . . Robots Corrupted . | . . . Combat Hostiles . | . . . Parts Fried . | . . . Impact Corruptions . | . . . Robots Melted . | . . . Combat Hostiles . | . . . Parts Melted . | . . . Heat Transferred 100 | . . 100 Parts Sabotaged . | . . . Parts Stolen . | . . . Parts Stripped . | . . . Power Chain Reactions . | . . . Alert | -11 -10 -10 ------- Run | Yrd Mat Sub Maximum Alert Level . | . . . Low Security (%) 100 | 100 100 . Level 1 . | . . . Level 2 . | . . . Level 3 . | . . . Level 4 . | . . . Level 5 . | . . . High Security . | . . . Max Security . | . . . Peak Influence 84 | 5 84 . Initial . | . . . Average 19 | 1 22 . Influence Increases 190 | 15 175 . Destroy 0b10 Robot/C 100 | . 100 . Destroy 0b10 Robot/NC 15 | 15 . . Destroy Leader 40 | . 40 . Successful Hack 5 | . 5 . Select Force Hacks 30 | . 30 . Influence Decreases 190 | 15 163 12 Entered New Map 7 | . . 7 Time Decay 183 | 15 163 5 Squads Dispatched 5 | . 5 . Investigation 2 | . 2 . Extermination . | . . . Reinforcement 3 | . 3 . Assault . | . . . Garrison . | . . . Intercept . | . . . Searches Triggered . | . . . Construction Impeded . | . . . Haulers Reinforced . | . . . Active Scanning Responses . | . . . Cargo Convoy Interrupts . | . . . Stealth | -11 -10 -10 --------- Run | Yrd Mat Sub Distress Signals 1 | . 1 . Communications Jammed . | . . . Distress Signals . | . . . Times Spotted 10 | . 7 3 Peak Tracking Total 2 | . 1 2 Tactical Retreats . | . . . Traps | -11 -10 -10 ------- Run | Yrd Mat Sub Traps Triggered 1 | . 1 . Indirectly . | . . . Trap Hack Attempts . | . . . Triggered . | . . . Disarmed . | . . . Reprogrammed . | . . . Reused . | . . . Traps Extracted . | . . . Installed . | . . . Triggered . | . . . Machines | -11 -10 -10 ---------- Run | Yrd Mat Sub Machines Disabled . | . . . Max in Single Turn . | . . . Machines Repaired . | . . . Machines Dismantled . | . . . Machines Sabotaged . | . . . Overloaded Fab Kills . | . . . Hacking | -11 -10 -10 --------- Run | Yrd Mat Sub Machines Accessed 4 | . 4 . Terminals 3 | . 3 . Fabricators . | . . . Repair Stations . | . . . Recycling Units 1 | . 1 . Scanalyzers . | . . . Garrison Access . | . . . Total Hacks 16 | . 16 . Successful 7 | . 7 . Failed 9 | . 9 . Catastrophic 1 | . 1 . Database Lockouts . | . . . Manual 16 | . 16 . Terminals 15 | . 15 . Fabricators . | . . . Repair Stations . | . . . Recycling Units 1 | . 1 . Scanalyzers . | . . . Garrison Access . | . . . Terminal Hacks 3 | . 3 . Terminal Index 1 | . 1 . Locate Traps 1 | . 1 . Zone Layout 1 | . 1 . Fabricator Hacks . | . . . Repair Station Hacks . | . . . Recycling Unit Hacks . | . . . Scanalyzer . | . . . Garrison Access Hacks . | . . . Unauthorized Hacks 4 | . 4 . Terminals 3 | . 3 . Botnet 1 | . 1 . Skim 2 | . 2 . Fabricators . | . . . Repair Stations . | . . . Recycling Units 1 | . 1 . Tunnel 1 | . 1 . Scanalyzers . | . . . Garrison Access . | . . . Data Cores Recovered . | . . . Used . | . . . Hacking Detections 3 | . 3 . Full Trace Events . | . . . Feedback Events . | . . . Feedback Blocked . | . . . Robot Schematics Acquired . | . . . Robots Built . | . . . Authchips . | . . . Time . | . . . Total Robot Build Rating . | . . . Part Schematics Acquired . | . . . Parts Built . | . . . Authchips . | . . . Time . | . . . Total Part Build Rating . | . . . Part Studies Acquired . | . . . Parts Repaired . | . . . Time . | . . . Parts Recycled . | . . . Recycled Matter . | . . . Retrieved Matter . | . . . Retrieved Components . | . . . Parts Scanalyzed . | . . . Part Schematics Acquired . | . . . Parts Damaged . | . . . Bothacking | -11 -10 -10 ------------ Run | Yrd Mat Sub Used RIF Installer . | . . . Robots Hacked . | . . . Non-combat . | . . . Combat . | . . . Robot Hacks Applied . | . . . Relay Couplers Released . | . . . Fabnet Peak Effective % . | . . . Robots Rewired . | . . . Allies Hacked . | . . . Hacks Repelled . | . . . Allies | -11 -10 -10 -------- Run | Yrd Mat Sub Total Allies . | . . . Largest Group . | . . . Highest-Rated Group . | . . . Highest-Rated Ally . | . . . Total Orders . | . . . Ally Attacks . | . . . Total Damage . | . . . Kills . | . . . Allies Corrupted . | . . . Allies Melted . | . . . Intel | -11 -10 -10 ------- Run | Yrd Mat Sub Active Infowar (turns) 1835 | 27 725 1083 Seismic 1835 | 27 725 1083 Robot Analysis Total . | . . . Derelict Logs Recovered 2 | . . 2 Drone Launches . | . . . Drone Recoveries . | . . . Exploration | -11 -10 -10 ------------- Run | Yrd Mat Sub Turns Passed 2041 | 118 725 1198 Spaces Moved 890 | 55 383 452 Core 4 | 4 . . Treads 886 | 51 383 452 Legs . | . . . Wheels . | . . . Hover . | . . . Flight . | . . . Fastest Speed 50 | 50 160 160 Average Speed 205 | 152 172 239 Slowest Speed 240 | 160 240 240 Overloaded Moves . | . . . Propulsion Burnouts . | . . . Robots Hopped . | . . . Potential Cave-ins . | . . . Cave-ins Triggered . | . . . Exploration Rate (%) 31 | 3 58 34 Regions Visited 2 Branch Regions 1 Pre-discovered Areas 2 | . 1 1 Known Exits Taken . | . . . Unknown Exits Taken 2 | 1 1 . Scrap Searched . | . . . Spaces Dug . | . . . Terrain Destroyed . | . . . Melee . | . . . Projectile . | . . . AOE . | . . . Terrain Rammed . | . . . Walls Destroyed . | . . . Machines Disabled . | . . . Actions | -11 -10 -10 --------- Run | Yrd Mat Sub Total 1006 | 70 413 523 Wait 30 | . 7 23 Move 888 | 54 382 452 Hop . | . . . Pick Up 10 | 1 5 4 Fast Attach 7 | 7 . . Attach 10 | . . 10 Detach 8 | . . 8 Swap 1 | . 1 . Drop 1 | . 1 . Fire 43 | 8 17 18 Melee . | . . . Ram . | . . . Kick . | . . . Crush 8 | . . 8 Escape Stasis . | . . . Rewire . | . . . Trap . | . . . Miscellaneous . | . . . Route ------- -11/Scrapyard -10/Materials (discovered 4 exits: [*Mat x2] / [*Min] / [*Sub]) -10/Subcaves (discovered 1 exit: [*Mat]) History --------- Turn | Location | Event 10 | -11/Scrapyard | Discovered new exit (range 15) 119 | -11/Scrapyard | Entered Materials 170 | -10/Materials | Discovered new exit (range 16) 261 | -10/Materials | Met 8R-AWN 261 | -10/Materials | Discovered new exit (range 11) 310 | -10/Materials | Build established: Mutant 411 | -10/Materials | Discovered new exit (range 7) 603 | -10/Materials | Discovered new exit (range 16) 844 | -10/Materials | Entered Subcaves 914 | -10/Subcaves | Learned location of Zion (-6) 960 | -10/Subcaves | Learned Materials emergency access door positions 1587 | -10/Subcaves | Shifting Twisted Machinery released Scrap Shield 1598 | -10/Subcaves | Shifting Twisted Machinery released Sub. Monowheel 2010 | -10/Subcaves | Discovered new exit (range 9) 2025 | -10/Subcaves | Core integrity fell below 50% 2037 | -10/Subcaves | Core integrity fell below 20% 2042 | -10/Subcaves | Destroyed by YV-3GF(R) with Subdweller Laser Last Messages --------------- 01128_ Acquired Sub. Optics. 01138_ Subatomizers dissect the Disposable Heat Sink. Scrap Shield falls loose from the Twisted Machinery. Sub. Monowheel falls loose from the Twisted Machinery. 01608_ Acquired Scrap Shield. 01628_ Acquired Sub. Monowheel. 01777_ FB-TEW(u) builds Twisted Machinery. 01983_ Assault Rifle destroyed. 02002_ Lgt. Armor Plating destroyed. 02005_ Ion Engine destroyed. 02010_ EXIT=FOUND 02022_ Mining Laser destroyed. 02023_ Slammed into C9-HZF(R). 02024_ Lgt. Treads destroyed. 02025_ Slammed into C9-HZF(R). 02028_ Lgt. Ion Engine destroyed. 02029_ Slammed into C9-HZF(R). Map ----- +----------------------------------------------------+ | ?????????????????????????????????????????????????? | | ?????????????????????????????????????????????????? | | ?????????????????????????????????????????????????? | | ?????????????????????????????????????????????????? | | ?????????????????????????????????????????????????? | | ?????????????????????????????????????????????????? | | ?????????????????????????????????????????????????? | | ?????????????????????????????????????????????????? | | ??????????????????????????????????? ?????????????? | | ??????????????????????????????????? #????????????? | | ??????????????????????????????????? ????????????? | | ??????????????????????????????????? ?????????????? | | ?????????????????????????????????? ?????????????? | | ?????????????????????????????????? ?????????????? | | ?????????????????????????????????? ##??????#????? | | ?????????????????????????????????? ##???? ?????? | | ?????????????????????????????????? # #### ??????? | | ?????????????????????????????????? # ???????? | | ?????????????????##??????????????? #????????# | | ????????????????##""????????????## #????????## | | ????????????????#"" ????????????# #???????## | | ????????????# ???"" #???###????## ?????????# | | ????????????##""??#""#### ##??## #?????????# | | ???????????##""" # R #?## #??????????#### | | ???????????#"< R### #?????????????? | | ???????????#"" # @ #### ##????###??????? | | ???????????## ### ### ### ##??## #??????? | | ?????????????????##### ## #??# ##?????? | | ???????????? ##??## ## # #??# #?????# | | ????????????"" ""## ## #?## ####?## | | ????????????"""""" ### #?# ## ### | | ???????????? """" ##?## #?# ## &## | | ???????? " " ####???## ### ### %&& | | ????????? #???#???# ## ## !&& | | ??????? #??# ### ## ## ## | | ??????? ## ###### ### ##### ##? | | ?????????## ??????# #???## ###?? | | ??????????????????## ###### ##??? | | ???????????????????# ### ## ##?? | | ???????????????????#### #?## | | ??????????????????????## ### | | ??????????????????????## ## # | | ??????????????????????# ######## ## ##### | | ???????????????????#??# ##??????######???? | | ???????????????????# ## #????????????????? | | ???????????????????# ##???????????????? | | ??????????????????## #???????????????? | | ??????????????? ### ##???????????????? | | ?????????????? ##????????????????? | | ???????????????## #?????????????????? | +----------------------------------------------------+ Best States ------------- Heat Dissipation 25 Energy Generation 10 Energy Capacity 250 Matter Stores 300 Matter Capacity 300 Sight Range 16 Terrain Scan Density 10 Armor Coverage 150 Evasion (%) 40 Recoil Reduction 2 Item Schematics ----------------- None Robot Schematics ------------------ None Fabricated ------------ Nothing Repaired ---------- Nothing Studied --------- None Alien Tech Used ----------------- None Achievements -------------- None Challenges ------------ None Game ------ Seed ComponentMobileDetector Manual? 0 Play Time 00:11:01 Cumulative 66.6 hours Start 2026.07.16 @ 21:10:18 End 2026.07.16 @ 21:18:24 Sessions 1 Manual Loads 0 Difficulty Rogue Special Mode None Game No. 73 Rogue 73 Adventurer 0 Explorer 0 Win Type - Total 1 Types 1/0/0/0/0/0/0/0/0/0 Lore% 54 Gallery% 42 Achievement% 38 Wizard Run 0 Options --------- Layout 1 ASCII 0 Keyboard 1 Movement Numpad Keybinds 1 Fullscreen 2 Font 24/Smallcaps Map View 50x40 Zoom Use 0% Tactical HUD 1 Map Filters NONE Filters NONE Steam 1 RUN: 38053860-9e6c-4c69-a410-fd15a395723f